fUST/lending_fUST_20250406
["ID","MTS","AMOUNT","RATE_DAILY","PERIOD"]
[357254615,1743947568980,-170.071,0.00045745,120]
[357254616,1743947569034,-1000.0,0.000458,49]
[357254617,1743947569087,-222.0,0.00046,120]
[357254618,1743947569137,-152.23,0.00046012,120]
[357254619,1743947569186,-431.438634,0.00046012,120]
[357254620,1743947569235,-431.438636,0.00046012,120]
[357254621,1743947569514,-151.0,0.00046015,120]
[357254622,1743947569559,-151.0,0.00046015,120]
[357254623,1743947569606,-151.0,0.00046015,120]
[357254624,1743947569658,-151.0,0.00046015,120]
[357254625,1743947569707,-224.906835,0.00046015,120]
[357254626,1743947569752,-224.906835,0.00046015,120]
[357254627,1743947569797,-1000.0,0.00046532,120]
[357254628,1743947569841,-2000.0,0.000467,41]
[357254629,1743947569884,-2000.0,0.000467,41]
[357254630,1743947569932,-159.0,0.000469,120]
[357254631,1743947569982,-158.0,0.000469,120]
[357254632,1743947570032,-322.54622018,0.00046942,120]
[357254633,1743947570081,-322.54622018,0.00046986,120]
[357254634,1743947570130,-322.54622018,0.00046992,120]
[357254635,1743947570180,-322.54622018,0.00046996,120]
[357254636,1743947570228,-266.19,0.00047,120]
[357254637,1743947570278,-151.0,0.00047654,30]
[357254638,1743947570322,-905.9,0.000477,44]
[357254639,1743947570367,-905.9,0.000477,44]
[357254640,1743947570411,-151.0,0.0004786,30]
[357254641,1743947570457,-1800.0,0.00047972,120]
[357254642,1743947570501,-222.0,0.00048,120]
[357254643,1743947570547,-1800.0,0.00048246,120]
[357254644,1743947570592,-500.0,0.00048493,31]
[357254645,1743947570636,-1800.0,0.0004852,120]
[357254646,1743947570683,-500.0,0.00048767,33]
[357254647,1743947570730,-1800.0,0.00048794,120]
[357254648,1743947570778,-155.835793,0.00048895,120]
[357254649,1743947570823,-5346.8329078,0.00049,120]
[357254650,1743947570867,-2000.0,0.00049,120]
[357254651,1743947570913,-193.21978677,0.00049041,35]
[357254652,1743947570960,-1800.0,0.00049068,120]
[357254653,1743947571006,-500.0,0.00049315,120]
[357254654,1743947571058,-500.0,0.00049315,120]
[357254655,1743947571108,-500.0,0.00049315,120]
[357254656,1743947571158,-500.0,0.00049315,120]
[357254657,1743947571207,-500.0,0.00049315,120]
[357254658,1743947571255,-500.0,0.00049315,120]
[357254659,1743947571303,-602.57922679,0.00049315,120]
[357254660,1743947571351,-594.09913446,0.00049315,120]
[357254661,1743947571399,-1800.0,0.00049342,120]
[357254662,1743947571447,-471.30068662,0.00049452,30]
[357254663,1743947571493,-151.0,0.00049599,30]
[357254664,1743947571541,-1800.0,0.00049616,120]
[357254665,1743947571587,-631.0,0.000497,30]
[357254666,1743947571636,-159.0,0.000498,120]
[357254667,1743947571686,-158.0,0.000498,120]
[357254668,1743947571733,-1800.0,0.0004989,120]
[357254669,1743947571915,-154.64320946,0.00049956,30]
[357254670,1743947571972,-477.3165881,0.00049999,120]
[357254671,1743947572024,-388.60555866,0.00049999,120]
[357254672,1743947572073,-470.59623871,0.00049999,120]
[357254673,1743947572123,-156.34221106,0.00049999,120]
[357254674,1743947572173,-500.0,0.00049999,31]
[357254675,1743947572224,-500.70789528,0.00049999,120]
[357254676,1743947572270,-500.0,0.00049999,31]
[357254677,1743947572319,-500.0,0.00049999,31]
[357254678,1743947572366,-500.0,0.00049999,31]
[357254679,1743947572414,-274.65235495,0.00049999,31]
[357254680,1743947572461,-358.13248305,0.00049999,120]
[357254681,1743947572513,-1000.0,0.0005,120]
[357254682,1743947572556,-1000.0,0.0005,120]
[357254683,1743947572600,-1000.0,0.0005,120]
[357254684,1743947572646,-1000.0,0.0005,120]
[357254685,1743947572696,-11662.0,0.0005,120]
[357254686,1743947572745,-44360.5,0.0005,120]
[357254687,1743947572792,-222.0,0.0005,120]
[357254688,1743947572837,-1800.0,0.00050438,120]
[357254689,1743947572884,-1800.0,0.00050986,120]
[357254690,1743947572933,-357.0,0.00051434,30]
[357254691,1743947572980,-357.0,0.00051434,30]
[357254692,1743947573026,-357.0,0.00051434,30]
[357254693,1743947573071,-318.0,0.00051434,30]
[357254694,1743947573118,-318.0,0.00051434,30]
[357254695,1743947573163,-318.0,0.00051434,30]
[357254696,1743947573209,-318.0,0.00051434,30]
[357254697,1743947573254,-357.0,0.00051434,30]
[357254698,1743947573298,-318.0,0.00051434,30]
[357254699,1743947573340,-318.0,0.00051434,30]
[357254700,1743947573382,-318.0,0.00051434,30]
[357254701,1743947573424,-439.42044866,0.00051434,30]
[357254702,1743947573467,-318.0,0.00051434,30]
[357254703,1743947573507,-318.0,0.00051434,30]
[357254704,1743947573549,-318.0,0.00051434,30]
[357254705,1743947573591,-318.0,0.00051434,30]
[357254706,1743947573632,-318.0,0.00051434,30]
[357254707,1743947573675,-1800.0,0.00051534,120]
[357254708,1743947573719,-800.0,0.00051618,30]
[357254709,1743947573763,-800.0,0.00051642,30]
[357254710,1743947573804,-800.0,0.00051748,30]
[357254711,1743947573848,-1000.0,0.00051853,120]
[357254712,1743947573891,-800.0,0.00051884,30]
[357254713,1743947573935,-800.0,0.00051932,30]
[357254714,1743947573982,-800.0,0.00051989,30]
[357254715,1743947574028,-164.08,0.00052,120]
[357254716,1743947574074,-151.0,0.00052,30]
[357254717,1743947574120,-222.0,0.00052,120]
[357254718,1743947574166,-500.0,0.00052054,30]
[357254719,1743947574211,-1800.0,0.00052082,120]
[357254720,1743947574256,-2052.9604,0.000521,30]
[357254721,1743947574301,-2052.9604,0.000521,30]
[357254722,1743947574347,-200.0,0.00052215,120]
[357254723,1743947574390,-250000.0,0.0005222,30]
[357254724,1743947574435,-206.0,0.0005236,30]
[357254725,1743947574479,-200.0,0.0005262,120]
[357254726,1743947574520,-1800.0,0.0005263,120]
[357254727,1743947574562,-159.0,0.000527,120]
[357254728,1743947574604,-158.0,0.000527,120]
[357254729,1743947574646,-1000.0,0.00052999,120]
[357254730,1743947574693,-761.13156629,0.00053,120]
[357254731,1743947574736,-1800.0,0.00053178,120]
[357254732,1743947574779,-200.0,0.00053227,120]
[357254733,1743947574819,-1800.0,0.00053726,120]
[357254734,1743947574863,-200.0,0.00053794,120]
[357254735,1743947574905,-206.0,0.0005399,30]
[357254736,1743947574948,-207.0,0.0005399,30]
[357254737,1743947574992,-1000.0,0.00053999,120]
[357254738,1743947575035,-515.0,0.00054,120]
[357254739,1743947575078,-1438.52971495,0.00054,120]
[357254740,1743947575131,-200.0,0.00054,120]
[357254741,1743947575186,-1111.0,0.00054,120]
[357254742,1743947575231,-222.0,0.00054,120]
[357254743,1743947575276,-200.0,0.0005419,120]
[357254744,1743947575318,-1800.0,0.00054274,120]
[357254745,1743947575361,-200.0,0.00054275,120]
[357254746,1743947575405,-200.0,0.00054321,120]
[357254747,1743947575448,-2000.0,0.000545,120]
[357254748,1743947575637,-200.0,0.00054752,120]
[357254749,1743947575685,-500.0,0.00054794,30]
[357254750,1743947575728,-500.0,0.00054794,30]
[357254751,1743947575770,-500.0,0.00054794,30]
[357254752,1743947575812,-153.00578933,0.00054794,120]
[357254753,1743947575852,-1000.0,0.00054794,30]
[357254754,1743947575893,-1039.30841545,0.00054794,30]
[357254755,1743947575936,-1710.56235271,0.00054822,120]
[357254756,1743947575988,-200.0,0.00054855,120]
[357254757,1743947576038,-1000.0,0.00054999,120]
[357254758,1743947576088,-1500.0,0.00055,120]
[357254759,1743947576137,-1424.61289212,0.00055,120]
[357254760,1743947576183,-213.2113689,0.00055217,60]
[357254761,1743947576228,-498.9264818,0.00055217,60]
[357254762,1743947576272,-307.455993,0.00055217,60]
[357254763,1743947576317,-563.9791657,0.00055217,60]
[357254764,1743947576362,-233.9513692,0.00055217,60]
[357254765,1743947576408,-563.9791657,0.00055217,60]
[357254766,1743947576453,-563.9791657,0.00055217,60]
[357254767,1743947576498,-563.9791657,0.00055217,60]
[357254768,1743947576547,-563.9791657,0.00055217,60]
[357254769,1743947576591,-159.0,0.000556,120]
[357254770,1743947576636,-158.0,0.000556,120]
[357254771,1743947576684,-200.0,0.00056,120]
[357254772,1743947576730,-1111.0,0.00056,120]
[357254773,1743947576776,-222.0,0.00056,120]
[357254774,1743947576822,-200.0,0.00056054,120]
[357254775,1743947576867,-1877.21997041,0.00057,120]
[357254776,1743947576914,-1000.0,0.00057174,120]
[357254777,1743947576962,-501.22704001,0.00057534,120]
[357254778,1743947577009,-500.0,0.00057534,120]
[357254779,1743947577057,-200.0,0.00058,120]
[357254780,1743947577103,-580.0,0.00058,60]
[357254781,1743947577152,-1111.0,0.00058,120]
[357254782,1743947577199,-283.70641785,0.00058,120]
[357254783,1743947577245,-222.0,0.00058,120]
[357254784,1743947577290,-151.0,0.00058027,120]
[357254785,1743947577335,-705948.7,0.0005844,30]
[357254786,1743947577380,-159.0,0.000585,120]
[357254787,1743947577426,-158.0,0.000585,120]
[357254788,1743947577472,-419.52,0.00059043,30]
[357254789,1743947577516,-1491.26,0.000595,120]
[357254790,1743947577562,-772.61215661,0.0005999,120]
[357254791,1743947577607,-200.0,0.0006,120]
[357254792,1743947577653,-199.94742628,0.0006,30]
[357254793,1743947577703,-165.61442767,0.0006,120]
[357254794,1743947577747,-1111.0,0.0006,120]
[357254795,1743947577791,-222.0,0.0006,120]
[357254796,1743947578962,631.0,0.000431,30]
[357254797,1743947582995,190.2555,0.00045745,120]
[357254798,1743947583221,190.2555,0.00050529,120]
[357254799,1743947583437,190.2555,0.00055312,120]
[357254800,1743947583665,190.2555,0.00060096,120]
[357254801,1743947585002,201.3589579,0.0006,120]
[357254802,1743947585987,200.2,0.0006,120]
[357254803,1743947586815,200.23,0.0006,120]
[357254804,1743947587666,153.26030556,0.0006,120]
[357254805,1743947588614,200.2,0.0006,120]
[357254806,1743947589767,631.0,0.0006,120]
[357254807,1743947589940,631.0,0.0006,120]
[357254808,1743947590148,631.0,0.0006,120]
[357254809,1743947590329,631.0,0.0006,120]
[357254810,1743947590510,631.0,0.0006,120]
[357254811,1743947590694,631.0,0.0006,120]
[357254812,1743947590901,631.0,0.0006,120]
[357254813,1743947591135,631.0,0.0006,120]
[357254814,1743947591352,631.0,0.0006,120]
[357254815,1743947591618,631.0,0.0006,120]
[357254816,1743947592240,631.0,0.0006,120]
[357254817,1743947592448,631.0,0.0006,120]
[357254818,1743947592524,167.676271,0.00051,85]
[357254819,1743947592631,631.0,0.0006,120]
[357254820,1743947593040,631.0,0.0006,120]
[357254821,1743947593244,631.0,0.0006,120]
[357254822,1743947593479,631.0,0.0006,120]
[357254823,1743947593680,631.0,0.0006,120]
[357254824,1743947593887,631.0,0.0006,120]
[357254825,1743947594132,631.0,0.0006,120]
[357254826,1743947594559,645.25659842,0.0006,120]
[357254827,1743947596227,164.3219451,0.00046411,120]
[357254828,1743947596375,164.3219451,0.00046767,120]
[357254829,1743947596571,164.3219451,0.00047123,120]
[357254830,1743947596651,164.3219451,0.00047479,120]
[357254831,1743947596756,164.3219451,0.00047836,120]
[357254832,1743947596881,164.3219451,0.00048192,120]
[357254833,1743947597008,164.3219451,0.00048548,120]
[357254834,1743947597151,164.3219451,0.00048877,120]
[357254835,1743947598837,150.29,0.0006,120]
[357254836,1743947635471,20626.0,0.000215,14]
[357254876,1743947927005,178.826582,0.00013699,2]
[357254924,1743948632101,-366.92490718,0.00023501,2]
[357254925,1743948632111,-8715.7854809,0.00023783,2]
[357254926,1743948632121,-227.909376,0.00023879,2]
[357254927,1743948632131,-300.0,0.00024692,2]
[357254928,1743948632140,-2183.25596413,0.00024693,2]
[357254929,1743948632150,-152.23,0.00024773,2]
[357254930,1743948632159,-5477.46730616,0.00024773,2]
[357254931,1743948632195,-8136.437195,0.00024773,2]
[357254933,1743948632205,-500.0,0.00024773,2]
[357254935,1743948632215,-500.0,0.00024773,2]
[357254937,1743948632227,-155.87810286,0.00024773,2]
[357254939,1743948632236,-512.95706276,0.00024773,2]
[357254941,1743948632246,-151.0,0.00024781,2]
[357254943,1743948632255,-151.0,0.00024781,2]
[357254945,1743948632265,-151.0,0.00024781,2]
[357254947,1743948632274,-151.0,0.00024781,2]
[357254949,1743948632284,-351.28,0.00024786,3]
[357254951,1743948632294,-500.0,0.00024795,2]
[357254953,1743948632303,-570.99470464,0.00024795,2]
[357254955,1743948632313,-161488.01645005,0.00024796,2]
[357254957,1743948632325,-208511.98354995,0.00024796,2]
[357254959,1743948632334,-419.12848707,0.00024859,2]
[357254961,1743948632343,-355.12778563,0.00024873,2]
[357254963,1743948632353,-500.0,0.00024873,2]
[357254966,1743948632362,-500.0,0.00024873,2]
[357254968,1743948632371,-509.61313061,0.00024873,2]
[357254970,1743948632381,-500.0,0.00024873,2]
[357254972,1743948632390,-515.11299789,0.00024873,2]
[357254974,1743948632400,-500.0,0.00024873,2]
[357254975,1743948632409,-509.26286886,0.00024873,2]
[357254976,1743948632419,-500.0,0.00024873,2]
[357254977,1743948632428,-500.0,0.00024873,2]
[357254979,1743948632438,-500.0,0.00024873,2]
[357254981,1743948632447,-500.0,0.00024873,2]
[357254983,1743948632457,-500.0,0.00024873,2]
[357254985,1743948632466,-500.0,0.00024873,2]
[357254987,1743948632477,-500.0,0.00024873,2]
[357254988,1743948632486,-500.0,0.00024873,2]
[357254989,1743948632496,-500.0,0.00024873,2]
[357254990,1743948632506,-500.0,0.00024873,2]
[357254991,1743948632515,-41118.43542646,0.000249,2]
[357255047,1743948637816,-500.0,0.00024792,2]
[357255049,1743948637826,-500.0,0.00024792,2]
[357255051,1743948637836,-381.9,0.00024792,2]
[357255053,1743948637848,-239.07609282,0.00024792,2]
[357255055,1743948637858,-500.0,0.00024792,2]
[357255057,1743948637867,-693.56145666,0.00024792,2]
[357255059,1743948637877,-475.43832764,0.00024792,2]
[357255061,1743948637887,-500.0,0.00024792,2]
[357255063,1743948637896,-500.0,0.00024792,2]
[357255065,1743948637906,-693.56145666,0.00024792,2]
[357255067,1743948637915,-500.0,0.00024792,2]
[357255069,1743948637925,-693.56145666,0.00024792,2]
[357255071,1743948637935,-500.0,0.00024792,2]
[357255073,1743948637945,-693.56145666,0.00024792,2]
[357255075,1743948637954,-223.19234749,0.00024792,2]
[357255077,1743948637963,-693.56145666,0.00024792,2]
[357255079,1743948637973,-693.56145666,0.00024792,2]
[357255080,1743948637984,-693.56145666,0.00024792,2]
[357255082,1743948637995,-693.56145666,0.00024792,2]
[357255084,1743948638004,-693.56145666,0.00024792,2]
[357255086,1743948638013,-693.56145666,0.00024792,2]
[357255088,1743948638023,-693.56145666,0.00024792,2]
[357255090,1743948638033,-693.56145666,0.00024792,2]
[357255092,1743948638042,-693.56145666,0.00024792,2]
[357255094,1743948638051,-693.56145666,0.00024792,2]
[357255096,1743948638060,-693.56145666,0.00024792,2]
[357255098,1743948638070,-693.56145666,0.00024792,2]
[357255100,1743948638079,-693.56145666,0.00024792,2]
[357255102,1743948638089,-693.56145666,0.00024792,2]
[357255104,1743948638098,-693.56145666,0.00024792,2]
[357255106,1743948638107,-693.56145666,0.00024792,2]
[357255108,1743948638117,-693.56145666,0.00024792,2]
[357255110,1743948638126,-693.56145666,0.00024792,2]
[357255112,1743948638136,-693.56145666,0.00024792,2]
[357255113,1743948638145,-693.56145666,0.00024792,2]
[357255114,1743948638154,-693.56145666,0.00024792,2]
[357255115,1743948638163,-693.56145666,0.00024792,2]
[357255116,1743948638172,-693.56145666,0.00024792,2]
[357255117,1743948638182,-693.56145666,0.00024792,2]
[357255118,1743948638191,-693.56145666,0.00024792,2]
[357255119,1743948638200,-693.56145666,0.00024792,2]
[357255120,1743948638209,-693.56145666,0.00024792,2]
[357255121,1743948638218,-693.56145666,0.00024792,2]
[357255122,1743948638229,-693.56145666,0.00024792,2]
[357255123,1743948638238,-693.56145666,0.00024792,2]
[357255124,1743948638247,-693.56145666,0.00024792,2]
[357255125,1743948638257,-693.56145666,0.00024792,2]
[357255126,1743948638266,-693.56145666,0.00024792,2]
[357255127,1743948638275,-693.56145666,0.00024792,2]
[357255128,1743948638284,-693.56145666,0.00024792,2]
[357255129,1743948638294,-22618.94592128,0.000249,2]
[357255163,1743948640932,-10507.22496594,0.000249,2]
[357255164,1743948640944,-1903.50658014,0.000249,2]
[357255211,1743948646187,-1008.34067306,0.000249,2]
[357255212,1743948646200,-5719.50042343,0.000249,2]
[357255213,1743948646212,-167491.23127269,0.000249,2]
[357255214,1743948646222,-5818.48232208,0.000249,5]
[357255215,1743948646232,-5818.48232192,0.00025934,6]
[357255216,1743948646242,-31295.8981578,0.00026243,2]
[357255217,1743948646252,-200.0,0.00026247,2]
[357255218,1743948646261,-500.0,0.00026273,2]
[357255219,1743948646271,-526.56101967,0.00026273,2]
[357255220,1743948646282,-500.0,0.00026273,2]
[357255221,1743948646291,-500.0,0.00026273,2]
[357255222,1743948646300,-500.0,0.00026273,2]
[357255223,1743948646309,-500.0,0.00026273,2]
[357255224,1743948646319,-500.0,0.00026273,2]
[357255225,1743948646328,-500.0,0.00026273,2]
[357255226,1743948646338,-500.0,0.00026273,2]
[357255227,1743948646347,-500.0,0.00026273,2]
[357255228,1743948646358,-500.71988164,0.00026273,2]
[357255229,1743948646368,-500.0,0.00026273,2]
[357255230,1743948646377,-500.0,0.00026273,2]
[357255231,1743948646387,-154.9408827,0.00026548,2]
[357255232,1743948646396,-153.0,0.00026548,2]
[357255233,1743948646405,-153.0,0.00026548,2]
[357255234,1743948646415,-156.5843743,0.00026548,2]
[357255235,1743948646425,-153.0,0.00026548,2]
[357255236,1743948646434,-153.0,0.00026548,2]
[357255237,1743948646443,-420.0,0.00026758,2]
[357255238,1743948646452,-250.0,0.00026821,2]
[357255239,1743948646462,-5818.48232192,0.00026969,7]
[357255240,1743948646472,-376.08895,0.00027,120]
[357255241,1743948646481,-200.0,0.00027,120]
[357255242,1743948646491,-250.0,0.00027199,2]
[357255243,1743948646500,-192.618,0.00027199,2]
[357255244,1743948646510,-165.842,0.00027199,2]
[357255245,1743948646519,-250.0,0.00027199,2]
[357255246,1743948646529,-196.873,0.00027199,2]
[357255247,1743948646538,-280.818,0.00027199,2]
[357255248,1743948646547,-2911.2,0.00027199,2]
[357255249,1743948646556,-2911.2,0.00027199,2]
[357255250,1743948646566,-2911.2,0.00027199,2]
[357255251,1743948646575,-2911.2,0.00027199,2]
[357255252,1743948646584,-2911.2,0.00027199,2]
[357255253,1743948646594,-542.0,0.00027199,2]
[357255254,1743948646603,-1478.0,0.00027199,2]
[357255255,1743948646612,-2254.0,0.00027199,2]
[357255256,1743948646623,-472.186,0.00027199,2]
[357255257,1743948646632,-242.61177357,0.00027368,2]
[357255258,1743948646642,-207.4,0.00027616,2]
[357255259,1743948646651,-2183.25596412,0.00027733,2]
[357255260,1743948646660,-5818.48232192,0.00028003,7]
[357255261,1743948646669,-294.4276763,0.00028129,4]
[357255262,1743948646678,-200.0,0.000283,120]
[357255263,1743948646687,-500.0,0.00028359,2]
[357255264,1743948646697,-215.0738,0.00028985,2]
[357255265,1743948646706,-587.0,0.00028997,2]
[357255266,1743948646716,-7486.0573902,0.00029,2]
[357255267,1743948646725,-5818.48232192,0.00029038,8]
[357255268,1743948646734,-1012.1669195,0.000295,2]
[357255269,1743948646744,-250000.0,0.000295,2]
[357255270,1743948646753,-2000.0,0.000295,7]
[357255271,1743948646762,-2000.0,0.000295,3]
[357255272,1743948646771,-2000.0,0.000295,7]
[357255273,1743948646780,-2000.0,0.000295,7]
[357255274,1743948646790,-2000.0,0.000295,7]
[357255275,1743948646799,-360.0,0.000295,7]
[357255276,1743948646809,-357.0,0.000295,7]
[357255277,1743948646818,-357.0,0.000295,7]
[357255278,1743948646828,-357.0,0.000295,7]
[357255279,1743948646837,-357.0,0.000295,7]
[357255280,1743948646847,-318.0,0.000295,7]
[357255281,1743948646857,-318.0,0.000295,7]
[357255282,1743948646867,-318.0,0.000295,7]
[357255283,1743948646876,-318.0,0.000295,7]
[357255284,1743948646886,-318.0,0.000295,7]
[357255285,1743948646895,-318.0,0.000295,7]
[357255286,1743948646905,-318.0,0.000295,7]
[357255287,1743948646914,-357.0,0.000295,7]
[357255288,1743948646923,-357.0,0.000295,7]
[357255289,1743948646933,-357.0,0.000295,7]
[357255290,1743948646942,-357.0,0.000295,7]
[357255291,1743948646951,-309.71427009,0.000295,7]
[357255292,1743948646960,-200.0,0.000296,120]
[357255293,1743948646970,-1672.57785595,0.000297,2]
[357255294,1743948646980,-328.5625634,0.00029874,2]
[357255295,1743948646993,-5209.93099055,0.0002996,7]
[357255296,1743948647003,-2460.32721221,0.0003,5]
[357255297,1743948647012,-2000.0,0.0003,2]
[357255298,1743948647023,-168.37241101,0.0003,3]
[357255299,1743948647033,-25692.65673757,0.0003,2]
[357255300,1743948647042,-375.09900363,0.0003,2]
[357255301,1743948647052,-300.0,0.0003,7]
[357255302,1743948647062,-449.05383286,0.0003,2]
[357255306,1743949450834,455.0911163,0.00023,10]
[357255325,1743949727664,369.45083302,0.0001,2]
[357255368,1743949832106,-500.0,0.00023563,2]
[357255369,1743949832118,-256.676676,0.00023669,2]
[357255371,1743949832127,-227.9093761,0.0002367,2]
[357255372,1743949832137,-300.0,0.00023765,2]
[357255373,1743949832146,-5831.8737025,0.00023766,2]
[357255374,1743949832202,-468.04,0.00023766,2]
[357255377,1743949832375,-18600.0862975,0.00023766,2]
[357255379,1743949832385,-1637.44197309,0.00024581,2]
[357255380,1743949832394,-500.0,0.00024673,2]
[357255381,1743949832405,-250.6283601,0.00024673,2]
[357255382,1743949832415,-414.50904082,0.00024673,2]
[357255383,1743949832424,-500.0,0.00024673,2]
[357255384,1743949832434,-500.0,0.00024673,2]
[357255385,1743949832444,-200.0,0.00024681,2]
[357255386,1743949832453,-151.0,0.00024681,2]
[357255387,1743949832463,-151.0,0.00024681,2]
[357255388,1743949832473,-151.0,0.00024681,2]
[357255389,1743949832482,-151.0,0.00024681,2]
[357255390,1743949832492,-151.0,0.00024681,2]
[357255391,1743949832503,-151.0,0.00024681,2]
[357255392,1743949832512,-151.0,0.00024681,2]
[357255393,1743949832522,-151.0,0.00024681,2]
[357255394,1743949832532,-151.0,0.00024681,2]
[357255395,1743949832541,-151.0,0.00024681,2]
[357255396,1743949832550,-462.12,0.00024686,3]
[357255397,1743949832559,-231.06,0.00024686,3]
[357255398,1743949832569,-693.2,0.00024686,3]
[357255399,1743949832578,-500.0,0.00024687,2]
[357255400,1743949832587,-500.0,0.00024687,2]
[357255401,1743949832597,-179.96607948,0.00024687,2]
[357255402,1743949832606,-500.0,0.00024687,2]
[357255403,1743949832615,-107.28549323,0.00024687,2]
[357255417,1743949837959,-200.0,0.00024681,2]
[357255418,1743949837969,-500.0,0.00024695,2]
[357255419,1743949837979,-506.41524791,0.00024695,2]
[357255420,1743949837989,-4618.37212343,0.00024696,2]
[357255421,1743949838000,-8024.91862382,0.00024696,2]
[357255446,1743949843209,-500.0,0.00024686,2]
[357255447,1743949843218,-132.02137047,0.00024686,2]
[357255448,1743949843230,-367.97862953,0.00024686,2]
[357255449,1743949843239,-500.0,0.00024686,2]
[357255450,1743949843248,-500.0,0.00024686,2]
[357255451,1743949843258,-500.0,0.00024686,2]
[357255452,1743949843267,-500.0,0.00024686,2]
[357255453,1743949843277,-500.0,0.00024686,2]
[357255455,1743949843286,-500.0,0.00024686,2]
[357255456,1743949843296,-500.0,0.00024686,2]
[357255457,1743949843306,-500.0,0.00024686,2]
[357255458,1743949843316,-500.0,0.00024686,2]
[357255459,1743949843325,-500.0,0.00024686,2]
[357255460,1743949843335,-500.0,0.00024686,2]
[357255462,1743949843345,-500.0,0.00024686,2]
[357255464,1743949843354,-500.0,0.00024686,2]
[357255465,1743949843366,-500.0,0.00024686,2]
[357255466,1743949843376,-500.0,0.00024686,2]
[357255467,1743949843388,-500.0,0.00024686,2]
[357255469,1743949843398,-500.0,0.00024686,2]
[357255471,1743949843409,-500.0,0.00024686,2]
[357255473,1743949843418,-75.73143824,0.00024686,2]
[357255475,1743949843430,-424.26856176,0.00024686,2]
[357255476,1743949843441,-500.0,0.00024686,2]
[357255477,1743949843451,-500.0,0.00024686,2]
[357255478,1743949843461,-500.0,0.00024686,2]
[357255479,1743949843470,-500.0,0.00024686,2]
[357255480,1743949843479,-500.0,0.00024686,2]
[357255481,1743949843489,-500.0,0.00024686,2]
[357255482,1743949843499,-500.0,0.00024686,2]
[357255483,1743949843508,-24.03143915,0.00024686,2]
[357255484,1743949843557,-475.96856085,0.00024686,2]
[357255485,1743949843567,-500.0,0.00024686,2]
[357255486,1743949843576,-99.87307671,0.00024686,2]
[357255542,1743950131167,176.28226,0.00013699,2]
[357255599,1743951032823,-3093.2249822,0.00023587,2]
[357255600,1743951032833,-729.16666667,0.00024564,2]
[357255601,1743951032845,-300.0,0.00024572,2]
[357255602,1743951032854,-511.60994617,0.00024573,2]
[357255603,1743951032864,-160.02878784,0.00024573,2]
[357255604,1743951032874,-500.0,0.00024573,2]
[357255605,1743951032883,-500.0,0.00024573,2]
[357255606,1743951032893,-500.0,0.00024573,2]
[357255607,1743951032902,-500.0,0.00024573,2]
[357255608,1743951032911,-500.0,0.00024573,2]
[357255609,1743951032920,-500.0,0.00024573,2]
[357255610,1743951032930,-500.0,0.00024573,2]
[357255611,1743951032940,-151.0,0.00024581,2]
[357255612,1743951032950,-151.0,0.00024581,2]
[357255613,1743951032959,-200.0,0.00024581,2]
[357255614,1743951032969,-364.12,0.00024586,3]
[357255615,1743951032978,-182.06,0.00024586,3]